bitfinex/quotes_SOLUSD_20220128
["timestamp","ask_amount","ask_price","bid_price","bid_amount"]
[1643411739315,0.25,90.629,90.579,10.72037909]
[1643411739711,24.9723,90.649,90.58,0.25]
[1643411739915,1.48674192,90.672,90.58,9.11]
[1643411740113,54.04322385,90.671,90.59,6.0]
[1643411740312,1.48674192,90.687,90.591,0.25]
[1643411740517,15.61,90.71,90.593,0.31602372]
[1643411740518,1.48674192,90.695,90.593,0.31602372]
[1643411740711,1.48674192,90.697,90.6,16.552]
[1643411740915,1.48674192,90.698,90.602,6.0]
[1643411741113,1.48674192,90.699,90.611,36.14893433]
[1643411741315,1.48674192,90.7,90.612,0.25]
[1643411741513,15.61,90.71,90.612,0.25]
[1643411741514,1.48674192,90.709,90.622,109.9]
[1643411741714,15.61,90.71,90.623,23.0765]
[1643411741915,51.77528703,90.709,90.632,6.0]
[1643411742113,15.61,90.71,90.634,44.66161936]
[1643411742515,51.39743445,90.709,90.634,44.66161936]
[1643411742715,51.39743445,90.708,90.634,44.66161936]
[1643411742917,51.39743445,90.707,90.634,44.66161936]
[1643411743114,51.39743445,90.709,90.634,44.66161936]
[1643411743520,51.39743445,90.709,90.644,6.0]
[1643411743716,0.25,90.708,90.644,16.76]
[1643411743916,51.39743445,90.707,90.644,16.76]
[1643411744116,51.39743445,90.706,90.644,16.76]
[1643411744316,51.39743445,90.705,90.644,16.76]
[1643411744525,53.82330362,90.705,90.644,16.76]
[1643411744716,53.57330362,90.704,90.645,10.72037909]
[1643411744917,53.57330362,90.703,90.645,10.72037909]
[1643411745117,53.57330362,90.702,90.645,10.72037909]
[1643411745317,53.82330362,90.701,90.645,10.72037909]
[1643411745619,53.57330362,90.701,90.645,10.72037909]
[1643411745817,70.37630362,90.7,90.645,10.72037909]
[1643411746020,53.57330362,90.699,90.645,10.72037909]
[1643411746416,0.25,90.698,90.645,10.72037909]
[1643411746819,16.555,90.69,90.645,10.72037909]
[1643411747221,0.25,90.689,90.645,10.72037909]
[1643411748418,0.25,90.709,90.641,10.72037909]
[1643411749018,16.553,90.7,90.641,10.72037909]
[1643411749518,0.25,90.699,90.641,10.72037909]
[1643411751922,0.25,90.699,90.689,1.0090239]
[1643411752322,0.25,90.699,90.69,10.72037909]
[1643411753425,0.25,90.699,90.69,13.75247909]
[1643411754926,0.25,90.699,90.69,10.72037909]
[1643411755126,0.25,90.699,90.623,23.3265]
[1643411755526,0.25,90.699,90.633,6.0]
[1643411755923,0.25,90.699,90.623,23.3265]
[1643411755924,16.555,90.69,90.623,23.3265]
[1643411756125,16.555,90.69,90.634,46.25493853]
[1643411756327,0.25,90.689,90.635,0.30322725]
[1643411757124,0.25,90.689,90.635,25.20342725]
[1643411757324,16.553,90.7,90.635,25.20342725]
[1643411757325,0.25,90.699,90.635,24.9002]
[1643411757529,0.25,90.699,90.635,37.2402]
[1643411759826,0.25,90.718,90.635,37.2402]
[1643411760227,53.77529035,90.718,90.645,6.0]
[1643411760431,16.551,90.71,90.635,37.2402]
[1643411760629,16.551,90.71,90.634,46.25493853]
[1643411760830,0.25,90.709,90.634,46.25493853]
[1643411761930,0.25,90.718,90.634,46.25493853]
[1643411762131,16.555,90.69,90.634,46.25493853]
[1643411762329,16.555,90.69,90.62,5.6483028]
[1643411762330,0.25,90.689,90.62,5.6483028]
[1643411762631,23.9209,90.689,90.62,5.6483028]
[1643411763630,16.56,90.67,90.62,5.6483028]
[1643411763829,0.25,90.669,90.62,5.6483028]
[1643411764931,16.56,90.66,90.62,5.6483028]
[1643411765329,0.25,90.659,90.62,5.6483028]
[1643411766334,0.25,90.679,90.62,5.6483028]
[1643411766535,1.33727314,90.663,90.62,5.6483028]
[1643411766932,0.25,90.662,90.62,5.6483028]
[1643411767134,16.563,90.65,90.62,5.6483028]
[1643411767334,0.25,90.649,90.62,5.6483028]
[1643411769939,1.33727314,90.648,90.62,5.6483028]
[1643411770337,16.567,90.64,90.62,5.6483028]
[1643411770739,0.25,90.639,90.62,5.6483028]
[1643411771739,16.568,90.63,90.601,3.2162673]
[1643411771940,32.178,90.63,90.601,3.2162673]
[1643411772139,0.25,90.629,90.601,3.2162673]
[1643411772539,1.33727314,90.628,90.601,3.2162673]
[1643411772941,0.25,90.627,90.601,3.2162673]
[1643411773941,55.236,90.62,90.601,3.2162673]
[1643411774343,0.25,90.619,90.601,3.2162673]
[1643411777648,16.567,90.62,90.601,3.2162673]
[1643411778954,0.25,90.619,90.601,3.2162673]
[1643411781953,16.57,90.61,90.56,45.4541899]
[1643411782350,0.25,90.609,90.56,45.4541899]
[1643411783451,0.25,90.609,90.543,47.3296]
[1643411784481,0.25,90.609,90.544,43.08948033]
[1643411784775,16.57,90.61,90.545,0.25]
[1643411784978,16.57,90.61,90.544,43.08948033]
[1643411786176,0.25,90.609,90.544,43.08948033]
[1643411786778,0.25,90.609,90.517,1.53394737]
[1643411786983,16.571,90.6,90.516,109.9]
[1643411787683,22.6676,90.628,90.526,6.0]
[1643411787879,22.9756,90.627,90.527,90.89106142]
[1643411788280,22.9756,90.627,90.528,110.15]
[1643411788480,22.9756,90.627,90.528,118.44]
[1643411788882,0.25,90.626,90.528,118.44]
[1643411789081,16.568,90.62,90.528,118.44]
[1643411789381,0.25,90.619,90.528,118.44]
[1643411790784,0.25,90.619,90.528,119.97394737]
[1643411791383,0.25,90.619,90.529,1.53394737]
[1643411791789,0.25,90.619,90.53,1.78394737]
[1643411791992,0.25,90.619,90.53,13.26394737]
[1643411792196,32.175,90.65,90.533,1.53394737]
[1643411792390,16.565,90.65,90.619,2.8142105]
[1643411793592,0.25,90.649,90.619,2.8142105]
[1643411795996,55.224,90.64,90.619,2.8142105]
[1643411796395,16.566,90.63,90.619,2.8142105]
[1643411796596,19.59810003,90.63,90.619,2.8142105]
[1643411796797,0.25,90.629,90.62,3.0321]
[1643411797898,1.48674192,90.658,90.62,3.0321]
[1643411798107,15.61,90.67,90.62,3.0321]
[1643411798108,1.48674192,90.669,90.62,3.0321]
[1643411798304,17.09674192,90.67,90.62,3.0321]
[1643411798499,16.561,90.66,90.62,3.0321]
[1643411798929,16.561,90.66,90.619,2.8142105]
[1643411799308,18.04774192,90.66,90.619,2.8142105]
[1643411799707,16.564,90.65,90.619,2.8142105]
[1643411799910,0.25,90.649,90.619,2.8142105]
[1643411802729,32.174,90.65,90.619,2.8142105]
[1643411804230,0.25,90.649,90.619,2.8142105]
[1643411815547,16.564,90.65,90.619,2.8142105]
[1643411816849,0.25,90.649,90.619,2.8142105]
[1643411822654,0.25,90.649,90.639,5.6403106]
[1643411822857,0.25,90.669,90.639,5.6403106]
[1643411823854,0.25,90.669,90.64,35.03275281]
[1643411824254,15.61,90.69,90.64,35.03275281]
[1643411824255,1.48674192,90.681,90.64,46.78275281]
[1643411824458,16.555,90.69,90.64,46.78275281]
[1643411824654,23.4784,90.728,90.64,46.78275281]
[1643411824655,1.48674192,90.695,90.64,46.78275281]
[1643411824856,1.48674192,90.688,90.641,24.9152]
[1643411825058,1.48674192,90.689,90.641,24.9152]
[1643411825459,1.48674192,90.683,90.641,24.9152]
[1643411825859,1.48674192,90.68,90.641,24.9152]
[1643411826259,1.73674192,90.679,90.641,24.9152]
[1643411826460,0.25,90.679,90.641,24.9152]
[1643411828168,2.95669142,90.678,90.641,24.9152]
[1643411828363,0.25,90.677,90.641,24.9152]
[1643411828768,2.95669142,90.676,90.641,24.9152]
[1643411829166,0.25,90.675,90.641,24.9152]
[1643411829366,0.25,90.675,90.641,59.12278901]
[1643411829974,0.25,90.675,90.641,24.9152]
[1643411830169,0.25,90.679,90.641,24.9152]
[1643411830970,16.556,90.68,90.641,24.9152]
[1643411832169,0.25,90.679,90.641,24.9152]
[1643411832573,0.25,90.679,90.666,2.8142105]
[1643411832774,0.25,90.691,90.666,14.1542105]
[1643411833180,1.48674192,90.698,90.666,14.1542105]
[1643411833374,0.25,90.697,90.666,14.1542105]
[1643411833574,2.95669142,90.69,90.666,14.1542105]
[1643411833776,0.25,90.689,90.666,2.8142105]
[1643411834176,2.95669142,90.688,90.666,2.8142105]
[1643411834376,0.25,90.687,90.666,2.8142105]
[1643411835580,0.25,90.689,90.666,2.8142105]
[1643411842201,0.25,90.689,90.679,5.6403106]
[1643411842401,0.25,90.689,90.679,8.8565779]
[1643411842600,0.25,90.689,90.68,3.0321]
[1643411842800,0.25,90.689,90.679,8.8565779]
[1643411843000,0.25,90.689,90.679,12.3144247]
[1643411843199,19.58710003,90.69,90.679,12.3144247]
[1643411843200,3.03210003,90.69,90.679,12.3144247]
[1643411843401,18.03774192,90.71,90.679,24.2744247]
[1643411843606,16.551,90.71,90.679,24.2744247]
[1643411843803,68.54177475,90.71,90.679,24.2744247]
[1643411844000,51.99077475,90.709,90.679,24.2744247]
[1643411844902,0.25,90.708,90.679,24.2744247]
[1643411845101,50.76353936,90.708,90.679,12.3144247]
[1643411845304,50.51353936,90.708,90.679,12.3144247]
[1643411845506,50.51353936,90.707,90.679,12.3144247]
[1643411845706,1.48674192,90.723,90.679,12.3144247]
[1643411845908,50.01353936,90.722,90.679,12.3144247]
[1643411846110,2.95669142,90.706,90.679,12.3144247]
[1643411846707,16.553,90.7,90.679,51.36317373]
[1643411846913,1.48674192,90.718,90.679,51.36317373]
[1643411847113,1.48674192,90.718,90.679,64.26317373]
[1643411847114,50.62365325,90.718,90.679,64.26317373]
[1643411847407,50.62365325,90.721,90.679,25.2144247]
[1643411847607,50.62365325,90.72,90.679,25.2144247]
[1643411847808,61.09084325,90.719,90.666,2.8142105]
[1643411848009,15.61,90.71,90.666,2.8142105]
[1643411848208,1.48674192,90.707,90.666,2.8142105]
[1643411848424,0.25,90.706,90.666,2.8142105]
[1643411848617,10.46719,90.705,90.666,2.8142105]
[1643411848809,15.61,90.7,90.666,2.8142105]
[1643411849008,32.166,90.7,90.666,2.8142105]
[1643411849211,0.25,90.699,90.666,2.8142105]
[1643411850109,3.20669142,90.699,90.666,2.8142105]
[1643411850510,10.46719,90.698,90.666,2.8142105]
[1643411850912,16.557,90.69,90.666,2.8142105]
[1643411851315,3.20669142,90.689,90.666,2.8142105]
[1643411852521,2.95669142,90.688,90.666,2.8142105]
[1643411852722,0.14248092,90.688,90.639,24.0978]
[1643411852917,16.557,90.68,90.639,24.0978]
[1643411853318,0.25,90.679,90.639,24.0978]
[1643411854720,16.558,90.67,90.639,24.0978]
[1643411855149,0.25,90.669,90.639,24.0978]
[1643411855454,1.48674192,90.695,90.639,24.0978]
[1643411855648,1.48674192,90.702,90.64,43.64510188]
[1643411856051,1.48674192,90.706,90.64,43.64510188]
[1643411856352,1.48674192,90.713,90.64,43.64510188]
[1643411856549,1.48674192,90.714,90.64,43.64510188]
[1643411856854,1.48674192,90.716,90.641,2.95669142]
[1643411857048,16.552,90.7,90.64,43.64510188]
[1643411857448,2.95669142,90.699,90.64,43.64510188]
[1643411858049,0.25,90.698,90.64,43.64510188]
[1643411858452,3.20669142,90.698,90.64,43.64510188]
[1643411859652,16.555,90.69,90.64,43.64510188]
[1643411859952,0.25,90.689,90.64,43.64510188]
[1643411862554,0.25,90.689,90.639,24.0978]
[1643411863153,2.95669142,90.688,90.639,24.0978]
[1643411863354,0.25,90.687,90.639,24.0978]
[1643411863554,0.25,90.687,90.64,36.1531442]
[1643411865361,0.25,90.689,90.64,36.1531442]
[1643411865765,0.25,90.689,90.639,24.0978]
[1643411868166,2.95669142,90.688,90.639,24.0978]
[1643411868361,0.25,90.687,90.639,24.0978]
[1643411868762,2.95669142,90.686,90.639,24.0978]
[1643411869173,0.25,90.685,90.639,24.0978]
[1643411869564,2.95669142,90.684,90.639,24.0978]
[1643411869763,0.25,90.683,90.639,24.0978]
[1643411870162,2.95669142,90.682,90.639,24.0978]
[1643411870362,0.25,90.681,90.639,24.0978]
[1643411871364,16.557,90.68,90.639,24.0978]
[1643411871769,0.25,90.679,90.639,24.0978]
[1643411874873,0.25,90.679,90.673,2.5330446]
[1643411875971,3.20669142,90.679,90.673,2.5330446]
[1643411876173,3.20669142,90.679,90.62,23.1504]
[1643411876375,16.56,90.67,90.588,1.53394737]
[1643411876577,15.61,90.66,90.588,1.53394737]
[1643411876776,15.61,90.66,90.582,1.53394737]
[1643411876975,3.20669142,90.659,90.583,43.6377808]
[1643411877173,3.20669142,90.659,90.584,23.0999]
[1643411877373,2.95669142,90.658,90.584,23.0999]
[1643411877777,23.425,90.657,90.584,23.0999]
[1643411877975,16.565,90.64,90.584,23.0999]
[1643411878179,23.425,90.639,90.584,23.0999]
[1643411878577,26.38169142,90.639,90.584,23.0999]
[1643411878777,2.95669142,90.638,90.585,38.60932252]
[1643411879881,15.61,90.65,90.585,38.60932252]
[1643411880181,16.567,90.63,90.585,38.60932252]
[1643411880378,0.25,90.629,90.585,38.60932252]
[1643411881412,16.567,90.63,90.585,38.60932252]
[1643411882308,16.562,90.65,90.585,38.60932252]
[1643411882710,0.25,90.649,90.585,38.60932252]
[1643411883714,16.562,90.65,90.585,38.60932252]
[1643411885411,16.559,90.67,90.585,38.60932252]
[1643411885611,16.559,90.67,90.586,0.25]
[1643411885812,16.559,90.67,90.585,38.60932252]
[1643411886411,16.559,90.67,90.586,0.25]
[1643411887016,16.559,90.67,90.586,9.6]
[1643411887818,0.25,90.669,90.586,9.6]
[1643411889515,16.56,90.66,90.586,9.35]
[1643411890017,3.20669142,90.659,90.586,9.35]
[1643411890214,3.20669142,90.659,90.587,23.9252]
[1643411890416,2.95669142,90.658,90.587,23.9252]
[1643411890817,0.25,90.657,90.587,23.9252]
[1643411891218,0.25,90.657,90.588,0.25]
[1643411891818,0.25,90.679,90.648,0.42262386]
[1643411892119,16.559,90.67,90.648,0.42262386]
[1643411893920,2.95669142,90.669,90.648,0.42262386]
[1643411894319,0.25,90.668,90.648,0.42262386]
[1643411894719,2.95669142,90.667,90.648,0.42262386]
[1643411894922,54.01034157,90.667,90.648,0.42262386]
[1643411895120,0.25,90.666,90.648,0.42262386]
[1643411895420,54.26034157,90.666,90.648,0.42262386]
[1643411895620,51.30365015,90.666,90.648,0.42262386]
[1643411897826,2.95669142,90.665,90.648,0.42262386]
[1643411898026,56.53145828,90.665,90.648,0.42262386]
[1643411898226,0.25,90.664,90.648,0.42262386]
[1643411898426,55.42423559,90.664,90.648,0.42262386]
[1643411898630,3.03210003,90.66,90.648,0.42262386]
[1643411898831,52.46754417,90.659,90.648,0.42262386]
[1643411899029,0.25,90.659,90.648,0.42262386]
[1643411901728,2.95669142,90.658,90.648,0.42262386]
[1643411902128,0.25,90.657,90.648,0.42262386]
[1643411903932,0.25,90.667,90.648,0.42262386]
[1643411904132,0.25,90.667,90.588,1.53394737]
[1643411904333,16.563,90.65,90.588,1.53394737]
[1643411904532,23.8735,90.649,90.585,38.60932252]
[1643411904733,24.1235,90.649,90.585,38.60932252]
[1643411905138,24.1235,90.649,90.577,1.53394737]
[1643411905336,16.564,90.64,90.573,1.53394737]
[1643411905538,16.564,90.64,90.561,23.4782]
[1643411905539,23.7766,90.639,90.569,1.53394737]
[1643411905736,24.0266,90.639,90.565,1.53394737]
[1643411906135,24.0266,90.639,90.566,46.00148179]
[1643411906336,26.98329142,90.639,90.566,46.00148179]
[1643411906736,16.567,90.63,90.566,46.00148179]
[1643411907137,0.25,90.629,90.566,46.00148179]
[1643411907336,23.7869,90.629,90.566,46.00148179]
[1643411907538,26.74359142,90.629,90.566,46.00148179]
[1643411907964,26.74359142,90.629,90.561,23.4782]
[1643411908164,16.568,90.62,90.561,23.4782]
[1643411908371,23.8256,90.619,90.561,23.4782]
[1643411908970,23.8256,90.619,90.562,43.55696859]
[1643411909469,16.569,90.61,90.561,23.4782]
[1643411909868,0.25,90.609,90.561,23.4782]
[1643411911070,16.571,90.6,90.561,23.4782]
[1643411911268,0.25,90.599,90.561,23.4782]
[1643411912878,0.25,90.599,90.545,43.62902981]
[1643411913180,16.573,90.59,90.546,22.9962]
[1643411913373,0.25,90.589,90.546,22.9962]
[1643411913574,0.25,90.589,90.535,23.6303]
[1643411913874,23.4334,90.589,90.536,22.9962]
[1643411914277,2.95669142,90.588,90.536,22.9962]
[1643411914678,0.25,90.587,90.536,22.9962]
[1643411915078,16.575,90.58,90.536,22.9962]
[1643411915281,0.25,90.579,90.536,22.9962]
[1643411916079,0.25,90.579,90.512,1.53394737]
[1643411916279,2.95669142,90.578,90.512,1.53394737]
[1643411916481,2.95669142,90.578,90.498,1.53394737]
[1643411916680,0.25,90.577,90.494,1.53394737]
[1643411916880,0.25,90.577,90.499,33.31983391]
[1643411917182,16.577,90.57,90.499,33.31983391]
[1643411917482,23.0662,90.569,90.499,33.31983391]
[1643411917682,26.02289142,90.569,90.499,33.31983391]
[1643411917881,2.95669142,90.568,90.499,33.31983391]
[1643411918282,0.25,90.567,90.499,33.31983391]
[1643411918481,0.25,90.567,90.491,50.27534737]
[1643411918682,0.25,90.567,90.491,1.53394737]
[1643411918683,32.189,90.56,90.491,1.53394737]
[1643411918906,32.189,90.56,90.465,1.53394737]
[1643411918907,0.25,90.559,90.465,1.53394737]
[1643411919182,10.46719,90.558,90.455,24.0498]
[1643411919387,22.9314,90.557,90.455,24.0498]
[1643411919582,10.46719,90.556,90.456,36.96347481]
[1643411919784,0.25,90.555,90.456,36.96347481]
[1643411919983,16.587,90.54,90.456,36.96347481]
[1643411920190,22.6814,90.539,90.456,36.96347481]
[1643411920386,0.25,90.539,90.456,36.96347481]
[1643411920784,0.25,90.539,90.466,6.0]
[1643411920984,0.25,90.539,90.467,22.8958]
[1643411921185,16.587,90.52,90.467,22.8958]
[1643411921384,0.25,90.519,90.467,22.8958]
[1643411922185,2.95669142,90.518,90.467,22.8958]
[1643411922386,16.588,90.51,90.467,22.8958]
[1643411922786,0.25,90.509,90.467,22.8958]
[1643411924890,16.589,90.5,90.467,22.8958]
[1643411925388,0.25,90.499,90.467,22.8958]
[1643411926414,0.25,90.529,90.467,22.8958]
[1643411926591,2.95669142,90.527,90.467,22.8958]
[1643411926790,0.25,90.526,90.467,22.8958]
[1643411926990,16.587,90.52,90.467,22.8958]
[1643411927389,0.25,90.519,90.467,22.8958]
[1643411928391,16.588,90.51,90.467,22.8958]
[1643411928790,0.25,90.509,90.467,22.8958]
[1643411929789,16.588,90.51,90.467,22.8958]
[1643411930593,2.95669142,90.534,90.467,22.8958]
[1643411930797,32.194,90.53,90.468,0.25]
[1643411930994,24.9652,90.569,90.468,113.10669142]
[1643411931194,2.95669142,90.587,90.469,2.95669142]
[1643411931397,24.9652,90.586,90.469,2.95669142]
[1643411931593,24.9652,90.586,90.47,0.25]
[1643411931995,16.577,90.57,90.47,0.25]
[1643411932395,51.06922589,90.578,90.47,0.25]
[1643411932600,51.06922589,90.577,90.467,22.8958]
[1643411932795,51.06922589,90.576,90.468,0.25]
[1643411932997,51.06922589,90.575,90.468,0.25]
[1643411933497,16.581,90.55,90.467,22.8958]
[1643411933921,0.25,90.549,90.467,22.8958]
[1643411934523,16.582,90.54,90.467,22.8958]
[1643411934823,0.25,90.539,90.467,22.8958]
[1643411937326,0.25,90.539,90.468,110.15]
[1643411937527,0.25,90.539,90.468,113.10669142]
[1643411937736,0.25,90.539,90.468,110.15]
[1643411938129,0.25,90.539,90.47,1.53394737]
[1643411938330,0.25,90.539,90.471,0.25]
[1643411938632,0.25,90.559,90.471,0.25]
[1643411938829,52.43423131,90.559,90.471,1.78394737]
[1643411939029,16.58,90.55,90.471,1.78394737]
[1643411939432,0.25,90.549,90.471,1.78394737]
[1643411939631,15.61,90.57,90.472,2.95669142]
[1643411939831,24.2881,90.599,90.476,1.53394737]
[1643411940032,76.47233131,90.599,90.486,6.0]
[1643411940233,52.18423131,90.598,90.501,1.53394737]
[1643411940531,10.46719,90.597,90.497,1.53394737]
[1643411940734,66.65445378,90.597,90.499,109.9]
[1643411940931,16.573,90.59,90.497,1.53394737]
[1643411941133,16.573,90.59,90.491,1.53394737]
[1643411941134,10.46719,90.589,90.491,1.53394737]
[1643411941331,66.90445378,90.589,90.491,1.53394737]
[1643411941530,56.18726378,90.588,90.488,1.53394737]
[1643411941732,10.46719,90.587,90.487,50.80494737]
[1643411941931,24.7354,90.586,90.489,1.53394737]
[1643411942131,16.577,90.57,90.491,1.53394737]
[1643411942333,0.25,90.569,90.489,1.53394737]
[1643411942739,0.25,90.569,90.491,1.53394737]
[1643411942934,0.25,90.569,90.492,1.53394737]
[1643411943337,0.25,90.589,90.502,1.53394737]
[1643411943838,0.25,90.589,90.5,1.53394737]
[1643411944237,51.67284863,90.588,90.5,1.53394737]
[1643411944436,51.67284863,90.587,90.5,1.53394737]
[1643411944636,76.38084863,90.586,90.5,1.53394737]
[1643411944839,51.92284863,90.585,90.5,1.53394737]
[1643411945037,51.92284863,90.585,90.501,0.25]
[1643411945237,51.92284863,90.585,90.501,1.78394737]
[1643411945438,51.92284863,90.585,90.503,1.53394737]
[1643411945640,51.92284863,90.585,90.501,0.25]
[1643411945641,51.92284863,90.585,90.504,1.53394737]
[1643411945837,51.92284863,90.585,90.505,0.25]
[1643411946441,51.92284863,90.585,90.506,1.53394737]
[1643411946837,51.92284863,90.585,90.503,1.53394737]
[1643411947239,51.92284863,90.585,90.504,0.25]
[1643411947441,51.92284863,90.585,90.504,1.78394737]
[1643411948042,51.92284863,90.585,90.505,1.53394737]
[1643411948243,51.92284863,90.585,90.506,0.25]
[1643411948442,51.92284863,90.585,90.505,1.53394737]
[1643411948643,51.92284863,90.585,90.502,1.53394737]
[1643411948845,51.92284863,90.585,90.502,1.78394737]
[1643411949145,51.92284863,90.585,90.503,1.53394737]
[1643411949343,51.92284863,90.585,90.504,0.25]
[1643411949945,51.92284863,90.585,90.503,1.53394737]
[1643411950144,16.575,90.58,90.5,24.03924737]
[1643411950343,0.25,90.579,90.5,22.5053]
[1643411953447,16.576,90.57,90.5,22.5053]
[1643411953748,0.25,90.569,90.5,22.5053]
[1643411954547,15.61,90.6,90.501,110.15]
[1643411954746,0.25,90.585,90.502,65.78]
[1643411954949,24.2004,90.619,90.518,42.48101407]
[1643411955149,0.25,90.618,90.52,111.43394737]
[1643411955348,0.25,90.618,90.521,0.25]
[1643411955549,16.57,90.61,90.521,4.74063879]
[1643411955747,0.25,90.609,90.521,4.74063879]
[1643411955948,0.25,90.609,90.521,0.25]
[1643411956348,53.62212485,90.608,90.519,48.9177]
[1643411956550,53.62212485,90.607,90.519,48.9177]
[1643411956755,16.571,90.6,90.519,48.9177]
[1643411957452,16.571,90.6,90.52,2.95669142]
[1643411957654,2.95669142,90.599,90.519,50.45164737]
[1643411957950,2.95669142,90.599,90.519,48.9177]
[1643411958149,25.1531,90.598,90.519,48.9177]
[1643411958551,28.10979142,90.598,90.519,48.9177]
[1643411958751,16.573,90.59,90.519,48.9177]
[1643411959455,0.25,90.589,90.519,48.9177]
[1643411959855,0.25,90.589,90.52,113.10669142]
[1643411960052,16.57,90.61,90.52,113.10669142]
[1643411960351,23.041,90.618,90.521,2.95669142]
[1643411960352,51.14223942,90.609,90.521,2.95669142]
[1643411960555,52.40432616,90.608,90.52,1.53394737]
[1643411960753,52.40432616,90.607,90.521,1.53394737]
[1643411960951,52.40432616,90.606,90.52,1.53394737]
[1643411961151,52.40432616,90.605,90.52,1.53394737]
[1643411961354,76.74612616,90.604,90.52,1.53394737]
[1643411961554,24.3418,90.604,90.52,1.53394737]
[1643411961757,16.571,90.6,90.52,1.53394737]
[1643411961957,52.40432616,90.599,90.519,48.9177]
[1643411962154,3.20669142,90.599,90.519,48.9177]
[1643411962354,0.25,90.599,90.519,48.9177]
[1643411962555,2.95669142,90.598,90.519,48.9177]
[1643411962754,0.25,90.597,90.519,48.9177]
[1643411962954,16.575,90.58,90.519,48.9177]
[1643411963155,23.4895,90.579,90.519,48.9177]
[1643411963458,23.7395,90.579,90.519,48.9177]
[1643411967698,23.7395,90.579,90.516,1.53394737]
[1643411967901,23.7395,90.579,90.514,1.53394737]
[1643411968098,23.7395,90.579,90.518,1.53394737]
[1643411969100,16.577,90.57,90.511,1.53394737]
[1643411969302,0.25,90.569,90.511,1.53394737]
[1643411969499,54.91564566,90.569,90.51,1.53394737]
[1643411969702,24.2191,90.568,90.507,1.53394737]
[1643411969902,51.95895424,90.567,90.508,1.53394737]
[1643411970101,51.70895424,90.566,90.506,1.03394737]
[1643411970305,16.578,90.56,90.489,23.5714]
[1643411970502,52.51482098,90.559,90.489,23.5714]
[1643411970701,52.51482098,90.558,90.489,23.5714]
[1643411970902,0.25,90.557,90.489,23.5714]
[1643411971904,3.20669142,90.557,90.489,23.5714]
[1643411972106,0.25,90.559,90.489,23.5714]
[1643411972306,52.76482098,90.559,90.489,23.5714]
[1643411973406,0.25,90.558,90.489,23.5714]
[1643411973606,24.512,90.558,90.489,23.5714]
[1643411976207,0.25,90.558,90.489,23.5714]
[1643411976407,15.61,90.57,90.489,23.3214]
[1643411976607,0.25,90.559,90.489,36.8114]
[1643411976806,24.5905,90.569,90.489,36.8114]
[1643411977009,24.3405,90.569,90.489,36.8114]
[1643411977410,24.3405,90.569,90.499,6.0]
[1643411977609,24.3405,90.569,90.5,24.7837]
[1643411978009,24.3405,90.569,90.51,40.91735422]
[1643411978511,24.3405,90.569,90.51,6.0]
[1643411978713,52.85823075,90.568,90.51,6.0]
[1643411978936,52.85823075,90.567,90.498,6.0]
[1643411979111,0.25,90.568,90.498,6.0]
[1643411979311,53.10823075,90.568,90.499,45.38503237]
[1643411979510,53.10823075,90.568,90.509,6.0]
[1643411982115,0.25,90.568,90.509,6.0]
[1643411982315,53.16662268,90.568,90.509,6.0]
[1643411982518,0.25,90.568,90.509,6.0]
[1643411984117,0.25,90.569,90.509,6.0]
[1643411984314,22.8553,90.588,90.509,6.0]
[1643411984515,76.14986669,90.588,90.509,6.0]
[1643411984716,53.29456669,90.587,90.509,6.0]
[1643411985119,0.25,90.586,90.509,6.0]
[1643411985317,53.54456669,90.586,90.509,6.0]
[1643411985519,53.54456669,90.586,90.51,6.0]
[1643411987621,53.54456669,90.586,90.509,6.0]
[1643411988319,53.54456669,90.586,90.51,113.10669142]
[1643411988618,0.25,90.586,90.52,6.0]